fUSD/lending_fUSD_20260517
["ID","MTS","AMOUNT","RATE_DAILY","PERIOD"]
[422467453,1778970645000,-450.0,0.00029169,30]
[422467447,1778970645000,-1382.15,0.00029169,30]
[422467448,1778970645000,-511.26,0.00029169,30]
[422467451,1778970645000,-450.0,0.00029169,30]
[422467450,1778970645000,-450.0,0.00029169,30]
[422467455,1778970645000,-650.0,0.00029169,30]
[422467457,1778970645000,-650.0,0.00029169,30]
[422467459,1778970645000,-650.0,0.00029169,30]
[422467445,1778970645000,-365.63,0.00029169,30]
[422467463,1778970645000,-1379.81,0.00029201,2]
[422467458,1778970645000,-650.0,0.00029169,30]
[422467473,1778970645000,-365.71,0.00029232,7]
[422467475,1778970645000,-1382.16,0.00029232,7]
[422467469,1778970645000,-366.06,0.00029232,7]
[422467468,1778970645000,-174.88300058,0.00029201,7]
[422467464,1778970645000,-365.63,0.00029201,2]
[422467477,1778970645000,-535.0,0.00029273,4]
[422467466,1778970645000,-1382.15,0.00029201,2]
[422467461,1778970645000,-510.69,0.00029201,2]
[422467467,1778970645000,-511.26,0.00029201,2]
[422467462,1778970645000,-2940.33,0.00029201,2]
[422467460,1778970645000,-365.91,0.00029201,2]
[422467465,1778970645000,-2943.58,0.00029201,2]
[422467547,1778970646000,-333.87626397,0.00030679,7]
[422467538,1778970646000,-239.64,0.00030241,120]
[422467539,1778970646000,-535.0,0.00030341,5]
[422467543,1778970646000,-349.76600115,0.00030561,7]
[422467541,1778970646000,-500.0,0.0003042,90]
[422467549,1778970646000,-353.99624591,0.00030679,7]
[422467540,1778970646000,-500.0,0.0003042,90]
[422467532,1778970646000,-5000.0,0.00030241,120]
[422467531,1778970646000,-914.9,0.00030239,2]
[422467544,1778970646000,-158.81822993,0.00030561,7]
[422467545,1778970646000,-156.33367028,0.00030561,7]
[422467537,1778970646000,-822.0,0.00030241,120]
[422467551,1778970646000,-171.99539503,0.00030781,5]
[422467542,1778970646000,-159.11707341,0.00030561,7]
[422467546,1778970646000,-330.8752396,0.00030679,2]
[422467560,1778970646000,-200.0,0.00031096,2]
[422467558,1778970646000,-150.0,0.00031011,2]
[422467553,1778970646000,-1078.25,0.000308,7]
[422467556,1778970646000,-152.0,0.00030903,7]
[422467557,1778970646000,-33698.0,0.00031,2]
[422467552,1778970646000,-223.53,0.00030788,2]
[422467550,1778970646000,-394.11,0.0003069,2]
[422467554,1778970646000,-8321.47,0.000308,14]
[422467555,1778970646000,-535.0,0.00030875,6]
[422467559,1778970646000,-180.48177615,0.00031027,6]
[422467529,1778970646000,-150.0,0.00030207,30]
[422467548,1778970646000,-319.66870586,0.00030679,7]
[422467530,1778970646000,-205.0,0.00030207,30]
[422467516,1778970646000,-152.0,0.00030145,30]
[422467535,1778970646000,-850.0,0.00030241,120]
[422467504,1778970646000,-777.12310407,0.000301,2]
[422467505,1778970646000,-777.12310407,0.000301,2]
[422467508,1778970646000,-600.73407741,0.000301,2]
[422467510,1778970646000,-679.41,0.00030137,2]
[422467507,1778970646000,-600.73407744,0.000301,2]
[422467509,1778970646000,-600.73407741,0.000301,2]
[422467506,1778970646000,-777.12310407,0.000301,2]
[422467512,1778970646000,-1922.97,0.00030137,30]
[422467511,1778970646000,-200.0,0.00030137,2]
[422467513,1778970646000,-526.32527003,0.00030137,30]
[422467522,1778970646000,-151.0,0.00030207,30]
[422467514,1778970646000,-155.0,0.00030145,30]
[422467534,1778970646000,-235.0,0.00030241,120]
[422467515,1778970646000,-418.0,0.00030145,30]
[422467517,1778970646000,-193.99079007,0.00030178,5]
[422467523,1778970646000,-691.0,0.00030207,30]
[422467524,1778970646000,-274.0,0.00030207,30]
[422467518,1778970646000,-206.0,0.0003019,30]
[422467519,1778970646000,-151.0,0.0003019,30]
[422467520,1778970646000,-1801.62,0.000302,2]
[422467521,1778970646000,-212.0,0.00030207,30]
[422467526,1778970646000,-2250.0,0.00030207,30]
[422467528,1778970646000,-2116.0,0.00030207,30]
[422467527,1778970646000,-2250.0,0.00030207,30]
[422467533,1778970646000,-4906.0,0.00030241,120]
[422467536,1778970646000,-850.0,0.00030241,120]
[422467525,1778970646000,-164.0,0.00030207,30]
[422467569,1778970646000,-274.0,0.00031207,30]
[422467572,1778970646000,-2491.0,0.00031207,30]
[422467562,1778970646000,-418.0,0.00031145,30]
[422467589,1778970646000,-263.2447048,0.00031467,7]
[422467597,1778970646000,-479.5030588,0.00031588,7]
[422467599,1778970646000,-226.40460047,0.00031588,7]
[422467608,1778970646000,-1270.0,0.00031969,2]
[422467606,1778970646000,-535.0,0.00031943,7]
[422467605,1778970646000,-5530.0,0.000318,3]
[422467600,1778970646000,-173.94009359,0.00031588,7]
[422467603,1778970646000,-206.13548185,0.00031588,7]
[422467601,1778970646000,-259.70975591,0.00031588,7]
[422467602,1778970646000,-262.33542854,0.00031588,7]
[422467604,1778970646000,-530.99436886,0.00031588,7]
[422467607,1778970646000,-150.0,0.00031969,2]
[422467587,1778970646000,-317.63645987,0.00031467,7]
[422467598,1778970646000,-200.25692844,0.00031588,7]
[422467620,1778970646000,-253.09871637,0.00032072,7]
[422467621,1778970646000,-415.13710991,0.00032072,7]
[422467609,1778970646000,-1223.0,0.00031969,2]
[422467616,1778970646000,-204.45489781,0.00032072,7]
[422467615,1778970646000,-222.03387672,0.00032072,7]
[422467617,1778970646000,-158.43826638,0.00032072,7]
[422467619,1778970646000,-152.59631586,0.00032072,7]
[422467614,1778970646000,-200.0,0.00032055,2]
[422467612,1778970646000,-6054.0,0.00031969,2]
[422467618,1778970646000,-334.33741163,0.00032072,7]
[422467622,1778970646000,-157.44591693,0.00032072,7]
[422467567,1778970646000,-151.0,0.00031207,30]
[422467610,1778970646000,-926.0,0.00031969,2]
[422467592,1778970646000,-526.32527003,0.00031507,30]
[422467623,1778970646000,-477.35122024,0.00032072,7]
[422467585,1778970646000,-248.18147068,0.00031467,7]
[422467595,1778970646000,-204.48407923,0.00031588,7]
[422467563,1778970646000,-160.81567875,0.00031145,30]
[422467561,1778970646000,-155.0,0.00031145,30]
[422467568,1778970646000,-691.0,0.00031207,30]
[422467571,1778970646000,-3000.0,0.00031207,30]
[422467570,1778970646000,-164.0,0.00031207,30]
[422467565,1778970646000,-151.0,0.0003119,30]
[422467564,1778970646000,-206.0,0.0003119,30]
[422467573,1778970646000,-1747.0,0.00031207,30]
[422467575,1778970646000,-550.0,0.00031207,30]
[422467576,1778970646000,-550.0,0.00031207,30]
[422467578,1778970646000,-550.0,0.00031207,30]
[422467582,1778970646000,-318.23414683,0.00031467,7]
[422467566,1778970646000,-212.0,0.00031207,30]
[422467581,1778970646000,-207.56855496,0.00031467,7]
[422467591,1778970646000,-1000.0,0.000315,7]
[422467586,1778970646000,-164.68699442,0.00031467,7]
[422467590,1778970646000,-312.66734055,0.00031467,7]
[422467588,1778970646000,-267.32207255,0.00031467,7]
[422467584,1778970646000,-524.64900173,0.00031467,7]
[422467594,1778970646000,-500.81439596,0.00031588,7]
[422467596,1778970646000,-289.09716566,0.00031588,7]
[422467580,1778970646000,-535.0,0.00031409,6]
[422467583,1778970646000,-241.24251113,0.00031467,7]
[422467579,1778970646000,-509.0,0.00031207,30]
[422467577,1778970646000,-550.0,0.00031207,30]
[422467574,1778970646000,-550.0,0.00031207,30]
[422467593,1778970646000,-496.3128594,0.00031588,2]
[422467661,1778970647000,-303.98551273,0.00032194,7]
[422467663,1778970647000,-352.19062219,0.00032194,7]
[422467659,1778970647000,-180.70414806,0.00032194,7]
[422467658,1778970647000,-400.51385687,0.00032194,7]
[422467654,1778970647000,-211.15173831,0.00032194,5]
[422467662,1778970647000,-205.02579286,0.00032194,7]
[422467665,1778970647000,-524.67085707,0.00032194,7]
[422467657,1778970647000,-639.33741173,0.00032194,7]
[422467667,1778970647000,-412.27096369,0.00032194,7]
[422467656,1778970647000,-162.26913068,0.00032194,7]
[422467660,1778970647000,-170.33166223,0.00032194,7]
[422467666,1778970647000,-263.90649912,0.00032194,2]
[422467679,1778970647000,-3000.0,0.00032207,30]
[422467669,1778970647000,-707.99249181,0.00032194,7]
[422467672,1778970647000,-151.0,0.00032207,30]
[422467671,1778970647000,-212.0,0.00032207,30]
[422467668,1778970647000,-249.34276348,0.00032194,7]
[422467676,1778970647000,-3000.0,0.00032207,30]
[422467670,1778970647000,-347.88018718,0.00032194,7]
[422467673,1778970647000,-691.0,0.00032207,30]
[422467678,1778970647000,-3000.0,0.00032207,30]
[422467677,1778970647000,-3000.0,0.00032207,30]
[422467674,1778970647000,-274.0,0.00032207,30]
[422467675,1778970647000,-164.0,0.00032207,30]
[422467651,1778970647000,-661.75047919,0.00032194,2]
[422467664,1778970647000,-519.41951183,0.00032194,7]
[422467650,1778970647000,-151.0,0.00032191,7]
[422467637,1778970647000,-171.927388,0.00032072,7]
[422467653,1778970647000,-408.96815846,0.00032194,7]
[422467624,1778970647000,-339.61857189,0.00032072,7]
[422467626,1778970647000,-333.91511921,0.00032072,7]
[422467628,1778970647000,-232.65099278,0.00032072,2]
[422467633,1778970647000,-476.4546898,0.00032072,7]
[422467625,1778970647000,-182.01166614,0.00032072,7]
[422467627,1778970647000,-214.76054842,0.00032072,7]
[422467630,1778970647000,-699.5320023,0.00032072,7]
[422467629,1778970647000,-496.36294136,0.00032072,7]
[422467632,1778970647000,-192.60373668,0.00032072,7]
[422467631,1778970647000,-329.37398885,0.00032072,7]
[422467635,1778970647000,-229.15800551,0.00032072,7]
[422467634,1778970647000,-196.41253023,0.00032072,7]
[422467652,1778970647000,-667.75252794,0.00032194,7]
[422467636,1778970647000,-534.64414511,0.00032072,7]
[422467643,1778970647000,-155.0,0.00032145,30]
[422467639,1778970647000,-334.73444718,0.00032072,2]
[422467642,1778970647000,-371.59053031,0.00032072,7]
[422467641,1778970647000,-469.00101083,0.00032072,7]
[422467640,1778970647000,-526.4894096,0.00032072,7]
[422467645,1778970647000,-351.05400467,0.00032161,7]
[422467655,1778970647000,-578.19433132,0.00032194,7]
[422467644,1778970647000,-418.0,0.00032145,30]
[422467647,1778970647000,-500.0,0.00032164,2]
[422467646,1778970647000,-482.48502227,0.00032161,7]
[422467648,1778970647000,-206.0,0.0003219,30]
[422467649,1778970647000,-151.0,0.0003219,30]
[422467638,1778970647000,-440.55108259,0.00032072,7]
[422467680,1778970647000,-3000.0,0.00032207,30]
[422467681,1778970647000,-3000.0,0.00032207,30]
[422467683,1778970647000,-4084.0,0.0003224,2]
[422467709,1778970647000,-418.0,0.00033145,30]
[422467726,1778970647000,-152.0,0.00034112,7]
[422467716,1778970647000,-164.0,0.00033207,30]
[422467715,1778970647000,-274.0,0.00033207,30]
[422467717,1778970647000,-500.0,0.00033452,2]
[422467718,1778970647000,-535.0,0.00033545,9]
[422467724,1778970647000,-1000.0,0.00033999,65]
[422467720,1778970647000,-919.09788777,0.0003371,2]
[422467719,1778970647000,-1049.29800345,0.00033583,7]
[422467721,1778970647000,-927.43406659,0.0003371,7]
[422467725,1778970647000,-535.0,0.00034079,9]
[422467723,1778970647000,-350.0,0.00033973,5]
[422467727,1778970647000,-155.0,0.00034145,30]
[422467728,1778970647000,-418.0,0.00034145,30]
[422467730,1778970647000,-150.0,0.0003419,2]
[422467729,1778970647000,-914.9,0.00034182,7]
[422467735,1778970647000,-500.0,0.00034199,120]
[422467731,1778970647000,-206.0,0.0003419,30]
[422467733,1778970647000,-1000.0,0.00034199,21]
[422467732,1778970647000,-151.0,0.0003419,30]
[422467734,1778970647000,-1000.0,0.00034199,9]
[422467736,1778970647000,-500.0,0.00034199,7]
[422467737,1778970647000,-212.0,0.00034207,30]
[422467738,1778970647000,-151.0,0.00034207,30]
[422467682,1778970647000,-914.9,0.0003221,5]
[422467714,1778970647000,-691.0,0.00033207,30]
[422467712,1778970647000,-212.0,0.00033207,30]
[422467722,1778970647000,-1061.98873772,0.0003371,7]
[422467704,1778970647000,-535.0,0.00033011,8]
[422467711,1778970647000,-151.0,0.0003319,30]
[422467685,1778970647000,-297.0,0.00032307,2]
[422467690,1778970647000,-150.0,0.00032562,2]
[422467686,1778970647000,-212.0,0.00032363,2]
[422467691,1778970647000,-1078.25,0.000326,7]
[422467689,1778970647000,-1147.32,0.000325,7]
[422467687,1778970647000,-928.94463276,0.00032465,2]
[422467688,1778970647000,-535.0,0.00032477,7]
[422467693,1778970647000,-500.0,0.00032658,120]
[422467692,1778970647000,-8321.47,0.000326,14]
[422467696,1778970647000,-827.18809899,0.000328,2]
[422467694,1778970647000,-874.41500288,0.00032676,7]
[422467698,1778970647000,-799.17176466,0.000328,7]
[422467684,1778970647000,-340.0,0.00032307,2]
[422467710,1778970647000,-206.0,0.0003319,30]
[422467701,1778970647000,-526.32527003,0.00032877,30]
[422467713,1778970647000,-151.0,0.00033207,30]
[422467707,1778970647000,-204.53,0.00033112,34]
[422467706,1778970647000,-3559.519,0.00033112,34]
[422467708,1778970647000,-155.0,0.00033145,30]
[422467705,1778970647000,-350.0,0.00033014,5]
[422467702,1778970647000,-215.03962261,0.00033,30]
[422467697,1778970647000,-834.69065993,0.000328,7]
[422467695,1778970647000,-5530.0,0.000327,5]
[422467700,1778970647000,-679.41,0.00032877,2]
[422467699,1778970647000,-884.99061476,0.000328,7]
[422467703,1778970647000,-1000.0,0.00033009,8]
[422467783,1778970648000,-1147.32,0.00035,7]
[422467776,1778970648000,-150.0,0.00034969,2]
[422467780,1778970648000,-6054.0,0.00034969,2]
[422467779,1778970648000,-926.0,0.00034969,2]
[422467778,1778970648000,-1223.0,0.00034969,2]
[422467765,1778970648000,-532.0691179,0.0003436,60]
[422467770,1778970648000,-535.0,0.00034613,10]
[422467768,1778970648000,-716.13466405,0.00034481,2]
[422467767,1778970648000,-400.0,0.00034481,2]
[422467766,1778970648000,-400.0,0.00034481,2]
[422467781,1778970648000,-1000.0,0.00034999,4]
[422467769,1778970648000,-500.0,0.00034548,2]
[422467775,1778970648000,-350.0,0.00034931,5]
[422467792,1778970648000,-151.0,0.0003519,30]
[422467777,1778970648000,-1270.0,0.00034969,2]
[422467784,1778970648000,-391.71765849,0.00035031,2]
[422467785,1778970648000,-1072.28086907,0.00035074,2]
[422467786,1778970648000,-1082.00641102,0.00035074,7]
[422467796,1778970648000,-151.0,0.00035207,30]
[422467788,1778970648000,-155.0,0.00035145,30]
[422467790,1778970648000,-535.0,0.00035147,10]
[422467795,1778970648000,-212.0,0.00035207,30]
[422467787,1778970648000,-1238.98686067,0.00035074,7]
[422467791,1778970648000,-206.0,0.0003519,30]
[422467789,1778970648000,-418.0,0.00035145,30]
[422467794,1778970648000,-1500.0,0.000352,7]
[422467782,1778970648000,-1000.0,0.00034999,70]
[422467762,1778970648000,-500.0,0.0003436,60]
[422467749,1778970648000,-196.81200675,0.00034323,3]
[422467764,1778970648000,-500.0,0.0003436,60]
[422467798,1778970648000,-274.0,0.00035207,30]
[422467739,1778970648000,-691.0,0.00034207,30]
[422467740,1778970648000,-274.0,0.00034207,30]
[422467743,1778970648000,-1078.25,0.000343,30]
[422467748,1778970648000,-192.95208554,0.00034323,3]
[422467745,1778970648000,-500.0,0.00034323,3]
[422467741,1778970648000,-164.0,0.00034207,30]
[422467746,1778970648000,-173.23802138,0.00034323,3]
[422467744,1778970648000,-8321.47,0.000343,14]
[422467742,1778970648000,-526.32527003,0.00034247,30]
[422467747,1778970648000,-500.0,0.00034323,3]
[422467750,1778970648000,-287.24802701,0.00034323,3]
[422467751,1778970648000,-500.0,0.0003436,60]
[422467752,1778970648000,-500.0,0.0003436,60]
[422467753,1778970648000,-500.0,0.0003436,60]
[422467754,1778970648000,-500.0,0.0003436,60]
[422467755,1778970648000,-500.0,0.0003436,60]
[422467757,1778970648000,-500.0,0.0003436,60]
[422467761,1778970648000,-500.0,0.0003436,60]
[422467756,1778970648000,-500.0,0.0003436,60]
[422467758,1778970648000,-500.0,0.0003436,60]
[422467759,1778970648000,-500.0,0.0003436,60]
[422467760,1778970648000,-500.0,0.0003436,60]
[422467763,1778970648000,-500.0,0.0003436,60]
[422467771,1778970648000,-239.64,0.00034679,120]
[422467772,1778970648000,-500.0,0.00034758,120]
[422467773,1778970648000,-1500.0,0.00034795,2]
[422467774,1778970648000,-354.0,0.0003483,30]
[422467799,1778970648000,-164.0,0.00035207,30]
[422467793,1778970648000,-1000.0,0.00035199,26]
[422467803,1778970648000,-164.63041949,0.00035616,2]
[422467828,1778970648000,-199.293253,0.00035955,7]
[422467831,1778970648000,-2123.786567,0.00035955,7]
[422467835,1778970648000,-195.276238,0.00035955,7]
[422467845,1778970648000,-500.0,0.00035955,2]
[422467834,1778970648000,-151.0,0.00035955,7]
[422467836,1778970648000,-195.276238,0.00035955,7]
[422467839,1778970648000,-500.0,0.00035955,2]
[422467837,1778970648000,-195.276238,0.00035955,7]
[422467838,1778970648000,-195.276238,0.00035955,7]
[422467842,1778970648000,-500.0,0.00035955,2]
[422467840,1778970648000,-500.0,0.00035955,2]
[422467843,1778970648000,-500.0,0.00035955,2]
[422467844,1778970648000,-500.0,0.00035955,2]
[422467847,1778970648000,-500.0,0.00035955,2]
[422467848,1778970648000,-500.0,0.00035955,2]
[422467858,1778970648000,-500.0,0.00035955,2]
[422467857,1778970648000,-500.0,0.00035955,2]
[422467846,1778970648000,-500.0,0.00035955,2]
[422467849,1778970648000,-500.0,0.00035955,2]
[422467851,1778970648000,-500.0,0.00035955,2]
[422467856,1778970648000,-500.0,0.00035955,2]
[422467850,1778970648000,-500.0,0.00035955,2]
[422467855,1778970648000,-500.0,0.00035955,2]
[422467853,1778970648000,-500.0,0.00035955,2]
[422467854,1778970648000,-500.0,0.00035955,2]
[422467797,1778970648000,-691.0,0.00035207,30]
[422467852,1778970648000,-500.0,0.00035955,2]
[422467823,1778970648000,-438022.3113753,0.00035955,2]
[422467824,1778970648000,-151.0,0.00035955,7]
[422467841,1778970648000,-500.0,0.00035955,2]
[422467829,1778970648000,-199.293253,0.00035955,7]
[422467830,1778970648000,-2123.786567,0.00035955,7]
[422467804,1778970648000,-1000.0,0.0003565,100]
[422467807,1778970648000,-350.0,0.0003589,5]
[422467801,1778970648000,-8321.47,0.000356,14]
[422467805,1778970648000,-535.0,0.00035681,11]
[422467800,1778970648000,-162.06610683,0.00035315,120]
[422467806,1778970648000,-461.01707129,0.00035764,2]
[422467808,1778970648000,-150.0,0.00035899,2]
[422467809,1778970648000,-1078.25,0.000359,30]
[422467819,1778970648000,-1367.3478199,0.00035955,2]
[422467820,1778970648000,-160809.1490907,0.00035955,2]
[422467821,1778970648000,-5939.9835241,0.00035955,2]
[422467810,1778970648000,-206.205718,0.000359,12]
[422467812,1778970648000,-1000.0,0.00035937,72]
[422467802,1778970648000,-679.41,0.00035616,2]
[422467833,1778970648000,-2123.786567,0.00035955,7]
[422467813,1778970648000,-921.61679053,0.00035945,2]
[422467811,1778970648000,-1350.52884405,0.00035924,4]
[422467814,1778970648000,-300.0,0.00035954,10]
[422467815,1778970648000,-300.0,0.00035954,10]
[422467817,1778970648000,-300.0,0.00035954,10]
[422467816,1778970648000,-300.0,0.00035954,10]
[422467822,1778970648000,-698110.3179377,0.00035955,2]
[422467826,1778970648000,-199.293253,0.00035955,7]
[422467818,1778970648000,-5939.9835242,0.00035955,2]
[422467825,1778970648000,-129872.5884788,0.00035955,2]
[422467832,1778970648000,-2123.786567,0.00035955,7]
[422467827,1778970648000,-199.293253,0.00035955,7]
[422467899,1778970649000,-500.0,0.00035955,2]
[422467898,1778970649000,-500.0,0.00035955,2]
[422467889,1778970649000,-500.0,0.00035955,2]
[422467901,1778970649000,-500.0,0.00035955,2]
[422467900,1778970649000,-500.0,0.00035955,2]
[422467894,1778970649000,-500.0,0.00035955,2]
[422467891,1778970649000,-500.0,0.00035955,2]
[422467896,1778970649000,-500.0,0.00035955,2]
[422467892,1778970649000,-500.0,0.00035955,2]
[422467895,1778970649000,-500.0,0.00035955,2]
[422467890,1778970649000,-500.0,0.00035955,2]
[422467907,1778970649000,-500.0,0.00035955,2]
[422467893,1778970649000,-500.0,0.00035955,2]
[422467903,1778970649000,-500.0,0.00035955,2]
[422467910,1778970649000,-500.0,0.00035955,2]
[422467909,1778970649000,-500.0,0.00035955,2]
[422467902,1778970649000,-500.0,0.00035955,2]
[422467906,1778970649000,-500.0,0.00035955,2]
[422467904,1778970649000,-500.0,0.00035955,2]
[422467908,1778970649000,-500.0,0.00035955,2]
[422467921,1778970649000,-500.0,0.00035955,2]
[422467920,1778970649000,-500.0,0.00035955,2]
[422467911,1778970649000,-500.0,0.00035955,2]
[422467919,1778970649000,-167.32677,0.00035955,7]
[422467917,1778970649000,-167.32677,0.00035955,7]
[422467912,1778970649000,-500.0,0.00035955,2]
[422467914,1778970649000,-500.0,0.00035955,2]
[422467905,1778970649000,-500.0,0.00035955,2]
[422467888,1778970649000,-500.0,0.00035955,2]
[422467859,1778970649000,-500.0,0.00035955,2]
[422467897,1778970649000,-500.0,0.00035955,2]
[422467916,1778970649000,-167.32677,0.00035955,7]
[422467861,1778970649000,-500.0,0.00035955,2]
[422467870,1778970649000,-500.0,0.00035955,2]
[422467871,1778970649000,-500.0,0.00035955,2]
[422467862,1778970649000,-500.0,0.00035955,2]
[422467860,1778970649000,-500.0,0.00035955,2]
[422467863,1778970649000,-500.0,0.00035955,2]
[422467864,1778970649000,-500.0,0.00035955,2]
[422467866,1778970649000,-500.0,0.00035955,2]
[422467867,1778970649000,-500.0,0.00035955,2]
[422467865,1778970649000,-500.0,0.00035955,2]
[422467868,1778970649000,-500.0,0.00035955,2]
[422467872,1778970649000,-500.0,0.00035955,2]
[422467876,1778970649000,-500.0,0.00035955,2]
[422467875,1778970649000,-500.0,0.00035955,2]
[422467874,1778970649000,-500.0,0.00035955,2]
[422467880,1778970649000,-500.0,0.00035955,2]
[422467879,1778970649000,-500.0,0.00035955,2]
[422467881,1778970649000,-500.0,0.00035955,2]
[422467873,1778970649000,-500.0,0.00035955,2]
[422467882,1778970649000,-500.0,0.00035955,2]
[422467883,1778970649000,-500.0,0.00035955,2]
[422467884,1778970649000,-500.0,0.00035955,2]
[422467878,1778970649000,-500.0,0.00035955,2]
[422467885,1778970649000,-500.0,0.00035955,2]
[422467877,1778970649000,-500.0,0.00035955,2]
[422467887,1778970649000,-500.0,0.00035955,2]
[422467886,1778970649000,-500.0,0.00035955,2]
[422467915,1778970649000,-500.0,0.00035955,2]
[422467869,1778970649000,-500.0,0.00035955,2]
[422467918,1778970649000,-167.32677,0.00035955,7]
[422467948,1778970649000,-305.660067,0.00035955,7]
[422467956,1778970649000,-627.669364,0.00035955,7]
[422467959,1778970649000,-184.204153,0.00035955,7]
[422467953,1778970649000,-463.691199,0.00035955,7]
[422467955,1778970649000,-627.669364,0.00035955,7]
[422467958,1778970649000,-627.669364,0.00035955,7]
[422467961,1778970649000,-184.204153,0.00035955,7]
[422467971,1778970649000,-448.43651,0.00035955,7]
[422467972,1778970649000,-448.43651,0.00035955,7]
[422467960,1778970649000,-184.204153,0.00035955,7]
[422467962,1778970649000,-184.204153,0.00035955,7]
[422467964,1778970649000,-151.0,0.00035955,7]
[422467963,1778970649000,-1890.2768412,0.00035955,2]
[422467967,1778970649000,-448.43651,0.00035955,7]
[422467966,1778970649000,-2253.194383,0.00035955,7]
[422467965,1778970649000,-2253.194383,0.00035955,7]
[422467968,1778970649000,-2253.194383,0.00035955,7]
[422467969,1778970649000,-448.43651,0.00035955,7]
[422467970,1778970649000,-2253.194383,0.00035955,7]
[422467974,1778970649000,-157.143938,0.00035955,7]
[422467973,1778970649000,-157.143938,0.00035955,7]
[422467975,1778970649000,-157.143938,0.00035955,7]
[422467977,1778970649000,-240.725161,0.00035955,7]
[422467976,1778970649000,-157.143938,0.00035955,7]
[422467980,1778970649000,-240.725161,0.00035955,7]
[422467979,1778970649000,-151.0,0.00035955,7]
[422467913,1778970649000,-500.0,0.00035955,2]
[422467957,1778970649000,-627.669364,0.00035955,7]
[422467952,1778970649000,-463.691199,0.00035955,7]
[422467978,1778970649000,-240.725161,0.00035955,7]
[422467954,1778970649000,-9009.9446807,0.00035955,2]
[422467922,1778970649000,-500.0,0.00035955,2]
[422467925,1778970649000,-500.0,0.00035955,2]
[422467924,1778970649000,-500.0,0.00035955,2]
[422467926,1778970649000,-500.0,0.00035955,2]
[422467928,1778970649000,-500.0,0.00035955,2]
[422467923,1778970649000,-500.0,0.00035955,2]
[422467927,1778970649000,-500.0,0.00035955,2]
[422467930,1778970649000,-170.940753,0.00035955,2]
[422467951,1778970649000,-463.691199,0.00035955,7]
[422467933,1778970649000,-1402.46752,0.00035955,7]
[422467932,1778970649000,-151.0,0.00035955,7]
[422467929,1778970649000,-500.0,0.00035955,2]
[422467935,1778970649000,-1402.46752,0.00035955,7]
[422467946,1778970649000,-151.0,0.00035955,7]
[422467931,1778970649000,-1402.46752,0.00035955,7]
[422467934,1778970649000,-1402.46752,0.00035955,7]
[422467936,1778970649000,-374.778137,0.00035955,7]
[422467949,1778970649000,-463.691199,0.00035955,7]
[422467941,1778970649000,-279.30719,0.00035955,7]
[422467950,1778970649000,-305.660067,0.00035955,7]
[422467937,1778970649000,-374.778137,0.00035955,7]
[422467938,1778970649000,-374.778137,0.00035955,7]
[422467943,1778970649000,-279.30719,0.00035955,7]
[422467944,1778970649000,-100549.4039062,0.00035955,2]
[422467942,1778970649000,-279.30719,0.00035955,7]
[422467947,1778970649000,-305.660067,0.00035955,7]
[422467945,1778970649000,-305.660067,0.00035955,7]
[422467939,1778970649000,-374.778137,0.00035955,7]
[422467940,1778970649000,-279.30719,0.00035955,7]
[422468020,1778970650000,-300.0,0.00036365,2]
[422468027,1778970650000,-300.0,0.00036365,2]